bitfinex-derivatives/quotes_BTCF0:USTF0_20240913
["timestamp","ask_amount","ask_price","bid_price","bid_amount"]
[1726252525638,0.083606,59790.0,59783.0,48.13489393]
[1726252525845,0.083606,59790.0,59789.0,0.3608]
[1726252526146,0.083613,59784.0,59783.0,45.431894]
[1726252526334,0.083613,59784.0,59783.0,45.431054]
[1726252529138,0.083589,59802.0,59783.0,47.68489393]
[1726252529442,0.083599,59794.0,59793.0,0.3608]
[1726252529753,0.083602,59792.0,59791.0,1.05383993]
[1726252529944,0.45,59800.0,59788.0,0.3608]
[1726252530249,0.083606,59789.0,59788.0,0.3608]
[1726252531247,0.167212,59789.0,59788.0,0.3608]
[1726252531454,0.083613,59784.0,59783.0,45.432054]
[1726252531758,0.617226,59784.0,59783.0,45.070254]
[1726252532250,0.700839,59784.0,59783.0,45.070254]
[1726252532451,1.802639,59784.0,59783.0,44.986554]
[1726252532661,1.802639,59784.0,59783.0,40.83001217]
[1726252532662,1.300839,59784.0,59783.0,40.83001217]
[1726252532953,2.25573652,59784.0,59783.0,32.87503317]
[1726252533149,2.163439,59784.0,59783.0,32.14678917]
[1726252533457,2.33307964,59784.0,59783.0,31.39771028]
[1726252533656,2.33307964,59784.0,59783.0,30.71408728]
[1726252533855,2.33307964,59784.0,59783.0,30.63046628]
[1726252534352,1.7544106,59784.0,59783.0,30.63046628]
[1726252534555,2.2044106,59784.0,59783.0,30.63046628]
[1726252535251,2.2044106,59784.0,59783.0,30.54684528]
[1726252535656,2.2044106,59784.0,59783.0,29.35322428]
[1726252535853,2.2044106,59784.0,59783.0,28.95269728]
[1726252536042,2.2044106,59784.0,59783.0,28.86907628]
[1726252536245,2.2044106,59784.0,59783.0,28.78545528]
[1726252536955,2.2044106,59784.0,59783.0,28.70183428]
[1726252537760,2.2044106,59784.0,59783.0,28.53459228]
[1726252538256,2.2044106,59784.0,59783.0,28.36735028]
[1726252538453,1.1026106,59784.0,59783.0,28.28372928]
[1726252538758,1.6044106,59784.0,59783.0,28.28372928]
[1726252539063,2.163439,59784.0,59783.0,28.28372928]
[1726252539358,1.563439,59784.0,59783.0,28.28372928]
[1726252539557,1.061639,59784.0,59783.0,28.28372928]
[1726252539759,1.21396154,59784.0,59783.0,28.01585652]
[1726252540860,1.13034854,59784.0,59783.0,28.01585652]
[1726252541548,1.21396154,59784.0,59783.0,28.01585652]
[1726252542663,1.81396154,59784.0,59783.0,28.01585652]
[1726252543258,1.21396154,59784.0,59783.0,28.01585652]
[1726252543561,1.13034854,59784.0,59783.0,28.01585652]
[1726252543759,1.21396154,59784.0,59783.0,28.01585652]
[1726252544461,1.29757454,59784.0,59783.0,28.01585652]
[1726252544763,1.21396154,59784.0,59783.0,27.43585652]
[1726252545464,1.13034854,59784.0,59783.0,27.43585652]
[1726252545670,1.21396154,59784.0,59783.0,27.43585652]
[1726252545959,1.13034854,59784.0,59783.0,27.43585652]
[1726252546161,1.13034854,59784.0,59783.0,26.85408928]
[1726252546551,1.38206154,59784.0,59783.0,26.85408928]
[1726252546964,1.34109323,59784.0,59783.0,26.85408928]
[1726252547658,1.25748023,59784.0,59783.0,26.85408928]
[1726252547870,1.49570532,59784.0,59783.0,26.85408928]
[1726252548060,1.49570532,59784.0,59783.0,26.50253653]
[1726252548061,0.87129592,59784.0,59783.0,26.50253653]
[1726252548260,0.97455149,59784.0,59783.0,26.50253653]
[1726252548557,0.89093849,59784.0,59783.0,26.50253653]
[1726252549061,0.89092915,59784.0,59783.0,26.50253653]
[1726252549262,0.97454215,59784.0,59783.0,26.50253653]
[1726252549760,0.44651615,59784.0,59783.0,26.50253653]
[1726252549959,0.42687358,59784.0,59783.0,26.50253653]
[1726252550168,0.53012915,59784.0,59783.0,26.50253653]
[1726252550556,0.61374215,59784.0,59783.0,26.50253653]
[1726252550858,0.53012915,59784.0,59783.0,26.50253653]
[1726252552147,0.53012915,59784.0,59783.0,26.2347376]
[1726252552352,0.61374215,59784.0,59783.0,26.2347376]
[1726252553065,0.61374215,59784.0,59783.0,25.88319798]
[1726252553452,0.61374328,59784.0,59783.0,25.88319798]
[1726252553666,1.05815628,59784.0,59783.0,25.88319798]
[1726252553961,0.56240049,59784.0,59783.0,25.88319798]
[1726252554351,0.45914492,59784.0,59783.0,25.88319798]
[1726252554855,0.28957382,59784.0,59783.0,25.88319798]
[1726252555058,0.167226,59784.0,59783.0,25.88319798]
[1726252555260,0.083613,59784.0,59783.0,25.88319798]
[1726252555571,0.167226,59784.0,59783.0,25.88319798]
[1726252556553,0.335326,59784.0,59783.0,25.88319798]
[1726252556865,0.418939,59784.0,59783.0,25.30319798]
[1726252557059,0.47894223,59784.0,59783.0,25.02519798]
[1726252557455,0.47894223,59784.0,59783.0,24.85719798]
[1726252557659,0.47894223,59784.0,59783.0,24.68919798]
[1726252557863,0.47894223,59784.0,59783.0,24.52119798]
[1726252558257,0.47894223,59784.0,59783.0,24.35319798]
[1726252558464,0.47894223,59784.0,59783.0,24.18519798]
[1726252558858,0.47894223,59784.0,59783.0,24.01719798]
[1726252559057,1.66435523,59784.0,59783.0,21.76103338]
[1726252559358,1.56490257,59784.0,59783.0,20.89753238]
[1726252559557,1.49625523,59784.0,59783.0,20.89753238]
[1726252559758,1.49625523,59784.0,59783.0,20.36571838]
[1726252560056,1.49625523,59784.0,59783.0,19.04166938]
[1726252560266,1.94625523,59784.0,59783.0,18.77078438]
[1726252560566,2.01490257,59784.0,59783.0,18.30401476]
[1726252560768,2.01490257,59784.0,59783.0,18.05181876]
[1726252560968,1.93128957,59784.0,59783.0,15.37567176]
[1726252561154,2.29208957,59784.0,59783.0,14.66771276]
[1726252561360,1.69208957,59784.0,59783.0,14.58409576]
[1726252561669,0.74028957,59784.0,59783.0,14.41686176]
[1726252561857,1.12164223,59784.0,59783.0,14.41686176]
[1726252564058,0.67164223,59784.0,59783.0,14.41686176]
[1726252564259,1.12164223,59784.0,59783.0,14.41686176]
[1726252565157,0.06864734,59791.0,59783.0,14.41686176]
[1726252565158,0.3608,59789.0,59783.0,14.41686176]
[1726252565357,0.083592,59799.0,59787.0,0.3608]
[1726252565571,0.9941,59808.0,59787.0,0.3608]
[1726252565572,0.06864734,59809.0,59798.0,0.3608]
[1726252565868,0.06864734,59819.0,59804.0,0.3608]
[1726252566068,0.083568,59817.0,59811.0,2.41823993]
[1726252566255,0.3608,59820.0,59812.0,0.0732]
[1726252566460,0.08357,59815.0,59812.0,0.0732]
[1726252566769,0.14863835,59823.0,59813.0,2.05743993]
[1726252567074,0.14863835,59823.0,59820.0,0.3608]
[1726252567258,0.3608,59827.0,59820.0,0.3608]
[1726252567457,0.3608,59827.0,59816.0,2.05743993]
[1726252567458,0.083559,59823.0,59817.0,0.3608]
[1726252567671,0.3608,59827.0,59817.0,0.3608]
[1726252567966,0.3608,59827.0,59819.0,2.05743993]
[1726252568157,0.3608,59827.0,59817.0,2.7608]
[1726252568355,0.3608,59827.0,59826.0,2.05743993]
[1726252568558,0.14349241,59835.0,59826.0,2.05743993]
[1726252568559,0.05994941,59834.0,59826.0,2.05743993]
[1726252568757,0.083543,59835.0,59826.0,2.05743993]
[1726252569057,0.14348741,59838.0,59826.0,2.05743993]
[1726252569256,0.05994941,59838.0,59830.0,2.05743993]
[1726252569465,0.14348341,59841.0,59837.0,2.05743993]
[1726252569665,0.14348341,59841.0,59827.0,0.3608]
[1726252569666,0.14348341,59841.0,59838.0,2.05743993]
[1726252569968,0.14596419,59840.0,59832.0,2.05743993]
[1726252570272,0.23183785,59839.0,59833.0,0.3608]
[1726252570473,0.18531964,59838.0,59834.0,2.05743993]
[1726252570669,0.18531964,59838.0,59828.0,0.1451]
[1726252570670,0.16941266,59837.0,59828.0,0.072]
[1726252570872,0.533542,59835.0,59825.0,0.3608]
[1726252571075,0.08587366,59834.0,59826.0,2.05743993]
[1726252571273,0.533542,59835.0,59826.0,2.05743993]
[1726252571274,0.08587366,59833.0,59826.0,2.05743993]
[1726252571471,0.07722537,59832.0,59827.0,2.05743993]
[1726252571667,0.07722537,59831.0,59827.0,2.05743993]
[1726252571976,0.08587366,59838.0,59830.0,0.3608]
[1726252572275,0.07722405,59837.0,59834.0,2.05743993]
[1726252572578,0.06858111,59836.0,59834.0,2.05743993]
[1726252572878,0.06858111,59835.0,59830.0,0.36164]
[1726252573070,0.14580277,59834.0,59830.0,2.7608]
[1726252573270,0.14580277,59833.0,59830.0,2.7608]
[1726252573467,0.14580277,59832.0,59825.0,0.3608]
[1726252573669,0.45,59834.0,59825.0,0.3608]
[1726252573670,0.14580277,59831.0,59825.0,2.7608]
[1726252573870,0.14580277,59830.0,59825.0,2.7608]
[1726252574069,0.14580277,59829.0,59825.0,2.7608]
[1726252574269,0.14580277,59828.0,59825.0,2.7608]
[1726252574476,0.14580277,59827.0,59825.0,2.7608]
[1726252574676,0.533535,59840.0,59825.0,4.81823993]
[1726252574976,0.083538,59839.0,59830.0,2.41823993]
[1726252575179,0.45,59840.0,59830.0,2.41823993]
[1726252575180,0.45212001,59840.0,59830.0,2.41823993]
[1726252575384,0.083541,59836.0,59830.0,2.05743993]
[1726252575575,0.0772253,59835.0,59830.0,1.81551994]
[1726252575781,0.0772253,59834.0,59830.0,1.81551994]
[1726252576080,0.4380253,59833.0,59816.0,0.325]
[1726252576276,0.533554,59826.0,59822.0,1.81551994]
[1726252576479,0.0772253,59825.0,59822.0,1.81551994]
[1726252576675,0.0772253,59824.0,59822.0,1.81551994]
[1726252576874,0.0772253,59823.0,59822.0,1.81551994]
[1726252577074,0.0772253,59823.0,59814.0,0.0731]
[1726252577075,0.4380253,59823.0,59814.0,0.0731]
[1726252577375,0.452,59826.0,59819.0,0.3608]
[1726252577376,0.0772253,59822.0,59819.0,0.3608]
[1726252577575,0.3608,59828.0,59819.0,2.4]
[1726252577576,0.0772253,59821.0,59819.0,2.4]
[1726252577778,0.3608,59828.0,59819.0,2.4]
[1726252577779,0.0772253,59820.0,59819.0,2.4]
[1726252578075,0.3608,59828.0,59822.0,1.81551994]
[1726252578281,0.002,59832.0,59827.0,2.17631994]
[1726252578477,0.3608,59836.0,59829.0,1.81551994]
[1726252578783,0.083543,59835.0,59829.0,1.81551994]
[1726252578970,0.53561601,59839.0,59830.0,1.81551994]
[1726252579173,0.083541,59836.0,59830.0,1.81551994]
[1726252579377,0.452,59839.0,59830.0,1.81551994]
[1726252579580,0.083538,59838.0,59835.0,1.81551994]
[1726252579775,0.3608,59841.0,59835.0,1.81551994]
[1726252580583,0.45216,59845.0,59840.0,1.81551994]
[1726252580779,0.083522,59849.0,59841.0,1.81551994]
[1726252580981,0.45,59851.0,59846.0,1.81551994]
[1726252581281,0.45,59851.0,59842.0,0.3608]
[1726252581282,0.3608,59849.0,59842.0,2.17631994]
[1726252581581,0.45,59843.0,59837.0,0.36164]
[1726252581774,0.45,59843.0,59838.0,1.81551994]
[1726252581970,0.3608,59849.0,59837.0,2.7608]
[1726252582170,0.3608,59849.0,59848.0,1.81551994]
[1726252582576,0.8108,59849.0,59848.0,4.21551994]
[1726252583582,0.8108,59849.0,59827.0,0.52554]
[1726252583583,0.083524,59848.0,59830.0,0.444348]
[1726252583782,0.45,59843.0,59838.0,1.81551994]
[1726252584186,0.45,59843.0,59838.0,4.21551994]
[1726252584888,0.45,59843.0,59842.0,1.81551994]
[1726252585187,0.45,59843.0,59839.0,1.81551994]
[1726252585571,0.45,59843.0,59839.0,4.21551994]
[1726252585979,0.8108,59843.0,59839.0,2.4]
[1726252586180,0.8108,59843.0,59842.0,1.81551994]
[1726252586576,0.8108,59843.0,59842.0,4.21551994]
[1726252586785,0.8108,59843.0,59842.0,4.11551994]
[1726252587377,0.8108,59843.0,59842.0,2.4]
[1726252589083,0.894331,59843.0,59842.0,2.4]
[1726252589385,0.8108,59843.0,59842.0,2.4]
[1726252589585,0.3608,59843.0,59842.0,2.4]
[1726252590394,0.3608,59843.0,59842.0,4.11551994]
[1726252590793,0.3608,59849.0,59842.0,4.47631994]
[1726252590990,0.3608,59849.0,59848.0,1.71551994]
[1726252591390,0.002,59855.0,59848.0,4.11551994]
[1726252591688,0.45,59860.0,59848.0,4.11551994]
[1726252591689,0.26,59858.0,59851.0,1.71551994]
[1726252592084,0.34351,59858.0,59851.0,4.11551994]
[1726252592279,0.26,59858.0,59851.0,4.11551994]
[1726252592485,0.6208,59858.0,59851.0,4.11551994]
[1726252593184,0.083513,59856.0,59851.0,4.11551994]
[1726252593788,0.26,59852.0,59851.0,2.4]
[1726252593995,0.083518,59852.0,59851.0,2.4]
[1726252594192,0.704318,59852.0,59851.0,2.4]
[1726252594890,0.6208,59852.0,59851.0,2.4]
[1726252595396,0.6208,59852.0,59830.0,0.3608]
[1726252595582,0.26,59838.0,59837.0,1.71551994]
[1726252595782,0.3608,59838.0,59837.0,2.4]
[1726252596089,0.6208,59838.0,59837.0,2.4]
[1726252596490,0.6292774,59838.0,59837.0,2.4]
[1726252596892,0.3608,59838.0,59837.0,2.4]
[1726252597089,0.37157517,59838.0,59837.0,2.4]
[1726252597290,0.37157517,59838.0,59830.0,0.3608]
[1726252597489,0.01919322,59838.0,59837.0,1.71551994]
[1726252597696,0.3608,59843.0,59837.0,1.71551994]
[1726252597995,0.37179731,59843.0,59840.0,1.645439]
[1726252598296,0.37179731,59843.0,59842.0,1.56748814]
[1726252598594,0.3801535,59843.0,59842.0,1.56748814]
[1726252598790,0.3801535,59843.0,59842.0,3.95086602]
[1726252599789,0.3801535,59843.0,59830.0,0.3608]
[1726252599998,0.26,59840.0,59839.0,1.56748814]
[1726252600190,0.26,59840.0,59837.0,1.56748814]
[1726252600393,0.26,59838.0,59837.0,1.56748814]
[1726252600797,0.083543,59834.0,59830.0,0.3608]
[1726252601001,0.3608,59838.0,59832.0,1.56748814]
[1726252601197,0.26,59833.0,59832.0,1.56748814]
[1726252601693,0.3608,59838.0,59832.0,1.43437763]
[1726252601895,0.26,59833.0,59832.0,1.43437763]
[1726252602402,0.26,59838.0,59832.0,1.43437763]
[1726252602597,0.26,59838.0,59833.0,1.43437763]
[1726252602796,0.08354,59837.0,59835.0,1.43437763]
[1726252603096,0.08354,59837.0,59830.0,0.36168]
[1726252603299,0.08354,59837.0,59836.0,1.29093987]
[1726252603894,0.16075895,59837.0,59836.0,1.29093987]
[1726252604600,0.16075895,59837.0,59813.0,0.26]
[1726252604601,0.08354,59836.0,59816.0,0.3608]
[1726252604911,0.083547,59831.0,59830.0,3.54214204]
[1726252605094,0.083547,59831.0,59830.0,2.38337788]
[1726252605410,0.09186381,59831.0,59830.0,2.38337788]
[1726252605596,0.00831681,59831.0,59830.0,3.54214204]
[1726252605797,0.3608,59833.0,59830.0,1.15876416]
[1726252606101,0.09181264,59833.0,59814.0,0.4339]
[1726252606300,0.083553,59827.0,59825.0,1.10247416]
[1726252606506,0.07721895,59826.0,59825.0,1.10247416]
[1726252607005,0.07721895,59826.0,59825.0,0.7648556]
[1726252607789,0.34721895,59826.0,59814.0,0.3528]
[1726252608001,0.6308,59815.0,59804.0,0.7520556]
[1726252608207,0.6308,59815.0,59804.0,2.97483673]
[1726252608208,0.6308,59805.0,59804.0,2.97483673]
[1726252608506,0.72304111,59805.0,59804.0,0.61153885]
[1726252608911,1.08384111,59805.0,59787.0,0.0394116]
[1726252609107,0.27,59792.0,59787.0,2.40270948]
[1726252609403,0.04093175,59791.0,59787.0,2.36329788]
[1726252609806,0.04093175,59791.0,59790.0,0.61153885]
[1726252610204,0.04093175,59791.0,59790.0,2.97483673]
[1726252610600,0.04093175,59791.0,59790.0,0.61153885]
[1726252610805,0.04093175,59791.0,59790.0,3.33563673]
[1726252611110,0.27835778,59796.0,59790.0,2.97483673]
[1726252611410,0.04094833,59795.0,59790.0,2.36329788]
[1726252611599,0.04094833,59794.0,59790.0,2.36329788]
[1726252611903,0.04094833,59793.0,59790.0,2.36329788]
[1726252612108,0.27835778,59796.0,59795.0,0.61153885]
[1726252612309,0.33019387,59796.0,59795.0,0.61153885]
[1726252612501,0.33019387,59796.0,59795.0,2.97483673]
[1726252614097,0.41378987,59796.0,59795.0,2.97483673]
[1726252614305,0.41378987,59796.0,59795.0,2.36329788]
[1726252614504,0.33019387,59796.0,59785.0,0.3608]
[1726252614703,0.27,59786.0,59785.0,2.70341788]
[1726252615104,0.35361,59786.0,59785.0,2.95415673]
[1726252615411,0.35361,59786.0,59774.0,0.3608]
[1726252615412,0.27816706,59786.0,59774.0,0.3608]
[1726252615608,0.36177806,59786.0,59785.0,0.60165692]
[1726252616314,0.01894108,59786.0,59785.0,2.9442748]
[1726252616605,0.3608,59801.0,59785.0,3.5442748]
[1726252616606,0.083595,59797.0,59785.0,3.5442748]
[1726252616814,0.27,59791.0,59785.0,2.34261788]
[1726252617309,0.27,59791.0,59790.0,0.60165692]
[1726252617516,0.27825574,59791.0,59790.0,0.60165692]
[1726252617718,0.27825574,59791.0,59790.0,2.9442748]
[1726252618215,0.00825574,59791.0,59790.0,2.9442748]
[1726252618416,0.27,59791.0,59790.0,2.9442748]
[1726252618619,0.27844733,59791.0,59790.0,2.9442748]
[1726252620512,0.36205033,59791.0,59790.0,2.9442748]
[1726252620912,0.083613,59784.0,59783.0,16.71869964]
[1726252621113,0.353613,59784.0,59783.0,16.71869964]
[1726252621313,0.353613,59784.0,59783.0,16.93069602]
[1726252621613,0.353613,59784.0,59783.0,14.58807814]
[1726252622012,0.353613,59784.0,59783.0,16.93069602]
[1726252622324,0.00844733,59791.0,59783.0,17.53069602]
[1726252622509,0.3608,59798.0,59790.0,0.60165692]
[1726252622510,0.0836,59794.0,59790.0,0.60165692]
[1726252622711,0.00829485,59794.0,59783.0,16.3290391]
[1726252622911,0.27,59785.0,59783.0,16.3290391]
[1726252623112,0.10045478,59784.0,59783.0,16.3290391]
[1726252623418,0.09228208,59784.0,59783.0,16.3290391]
[1726252623618,0.09228208,59784.0,59783.0,16.54879493]
[1726252623619,0.45308208,59784.0,59783.0,16.54879493]
[1726252623817,0.62030808,59784.0,59783.0,15.15408244]
[1726252624021,0.68028712,59784.0,59783.0,15.15408244]
[1726252624224,0.64763772,59784.0,59783.0,15.15408244]
[1726252624520,0.91763772,59784.0,59783.0,15.13379244]
[1726252625313,0.92829707,59784.0,59783.0,15.13379244]
[1726252625618,0.91999468,59784.0,59783.0,15.10513244]
[1726252625819,0.9285238,59784.0,59783.0,15.08793244]
[1726252626117,0.8449108,59784.0,59783.0,15.08793244]
[1726252626320,0.8449108,59784.0,59783.0,15.03393244]
[1726252628722,0.49131115,59784.0,59783.0,15.63558936]
[1726252629026,0.13051115,59784.0,59783.0,15.63558936]
[1726252629212,0.07051876,59784.0,59783.0,15.63558936]
[1726252630218,0.01918847,59784.0,59783.0,15.63558936]
[1726252630425,0.27,59792.0,59783.0,15.63558936]
[1726252630624,0.27,59792.0,59791.0,0.60165692]
[1726252630625,0.36205331,59792.0,59791.0,0.60165692]
[1726252630822,0.27845131,59792.0,59791.0,0.60165692]
[1726252631023,0.27845131,59792.0,59791.0,2.9442748]
[1726252631217,0.36205331,59792.0,59791.0,2.9442748]
[1726252631414,0.00845131,59792.0,59791.0,2.9442748]
[1726252631613,0.083598,59795.0,59791.0,2.9442748]
[1726252631917,0.27,59792.0,59791.0,2.34261788]
[1726252632528,0.083613,59784.0,59783.0,12.66745556]
[1726252632735,0.27,59789.0,59783.0,15.16598255]
[1726252633030,0.00845602,59792.0,59791.0,0.60165692]
[1726252633224,0.714393,59798.0,59791.0,2.9442748]
[1726252633421,0.444393,59798.0,59797.0,0.60165692]
[1726252633719,0.72286324,59798.0,59797.0,0.60165692]
[1726252634427,0.7336873,59798.0,59797.0,0.60165692]
[1726252635125,0.0192943,59798.0,59797.0,0.60165692]
[1726252635319,0.353588,59802.0,59797.0,0.60165692]
[1726252635619,0.00236,59811.0,59801.0,0.60165692]
[1726252635827,0.01090366,59811.0,59810.0,0.60165692]
[1726252636028,0.26,59823.0,59810.0,0.60165692]
[1726252636326,0.26,59823.0,59821.0,0.60165692]
[1726252636327,0.09224209,59822.0,59821.0,0.60165692]
[1726252636626,0.09224209,59822.0,59816.0,0.3608]
[1726252636627,0.24190341,59822.0,59816.0,0.3608]
[1726252636827,0.04093394,59821.0,59816.0,2.70341788]
[1726252637020,0.04093394,59820.0,59816.0,2.70341788]
[1726252637223,0.09223619,59819.0,59816.0,2.70341788]
[1726252637424,0.09223619,59818.0,59816.0,2.70341788]
[1726252637629,0.09223619,59817.0,59816.0,2.70341788]
[1726252638029,0.09223163,59817.0,59816.0,3.3050748]
[1726252638727,0.18282311,59817.0,59816.0,3.3050748]
[1726252638930,0.16620242,59817.0,59816.0,4.1650748]
[1726252639128,0.10299497,59817.0,59816.0,4.1650748]
[1726252639728,0.26919739,59817.0,59816.0,4.1650748]
[1726252640025,0.10299497,59817.0,59816.0,4.1650748]
[1726252641431,0.10299497,59817.0,59816.0,3.9050748]
[1726252641633,0.10299497,59817.0,59816.0,3.3050748]
[1726252642532,0.10299497,59817.0,59816.0,3.5650748]
[1726252642733,0.14921996,59825.0,59816.0,2.96341788]
[1726252642926,0.09179373,59844.0,59829.0,0.26]
[1726252643127,0.09179373,59844.0,59824.0,0.3608]
[1726252643128,0.05129037,59843.0,59833.0,0.26]
[1726252643437,0.05129037,59842.0,59838.0,0.26]
[1726252643735,0.05129037,59841.0,59838.0,2.60261788]
[1726252643926,0.05129037,59840.0,59838.0,2.60261788]
[1726252644235,0.083528,59845.0,59838.0,2.34261788]
[1726252644428,0.05128368,59844.0,59838.0,2.34261788]
[1726252644624,0.05128368,59843.0,59838.0,2.34261788]
[1726252645228,0.11984631,59842.0,59838.0,2.07510261]
[1726252645429,0.11984631,59841.0,59838.0,2.07510261]
[1726252645634,0.11984631,59840.0,59838.0,2.07510261]
[1726252645834,0.17976893,59839.0,59838.0,2.07510261]
[1726252646235,0.11120508,59839.0,59838.0,1.76107775]
[1726252646542,0.11120508,59839.0,59838.0,2.86243775]
[1726252646830,0.17976893,59839.0,59838.0,2.86243775]
[1726252647031,0.26675111,59852.0,59838.0,1.56204402]
[1726252647244,0.27732092,59852.0,59851.0,0.6208]
[1726252647452,0.3608,59879.0,59851.0,0.6208]
[1726252647453,0.3608,59879.0,59851.0,1.2208]
[1726252647627,0.26,59876.0,59861.0,0.3608]
[1726252647822,0.26,59866.0,59856.0,0.3608]
[1726252648027,0.26,59860.0,59851.0,1.55147421]
[1726252648227,0.3608,59870.0,59851.0,1.55147421]
[1726252648228,0.26,59865.0,59851.0,1.55147421]
[1726252648436,0.3608,59869.0,59852.0,0.3608]
[1726252648653,0.26,59867.0,59852.0,0.3608]
[1726252648830,0.26,59867.0,59852.0,1.91227421]
[1726252649030,0.083514,59855.0,59852.0,1.55147421]
[1726252649340,0.3608,59861.0,59852.0,1.55147421]
[1726252649341,0.083509,59859.0,59852.0,1.55147421]
[1726252649935,0.05990873,59858.0,59852.0,1.55147421]
[1726252650145,0.083516,59854.0,59852.0,1.55147421]
[1726252650446,0.31990873,59853.0,59852.0,1.55147421]
[1726252650642,0.05990873,59853.0,59852.0,1.55147421]
[1726252651148,0.31990873,59853.0,59845.0,0.3608]
[1726252651333,0.31990873,59853.0,59845.0,1.89228154]
[1726252651334,0.05990873,59852.0,59845.0,1.89228154]
[1726252651534,0.083524,59848.0,59845.0,1.89228154]
[1726252651730,0.05990873,59847.0,59845.0,1.53148154]
[1726252651932,0.05990873,59846.0,59845.0,1.53148154]
[1726252652341,0.083524,59848.0,59845.0,1.53148154]
[1726252652642,0.37160865,59855.0,59845.0,1.53148154]
[1726252653141,0.08352,59851.0,59845.0,1.53148154]
[1726252653343,0.083525,59848.0,59845.0,1.53148154]
[1726252653540,0.3608,59848.0,59845.0,1.50611594]
[1726252653738,0.3608,59848.0,59831.0,0.3608]
[1726252654040,0.3608,59848.0,59836.0,0.3608]
[1726252654041,0.26,59843.0,59836.0,0.3608]
[1726252654245,0.26,59843.0,59836.0,1.84637594]
[1726252654246,0.3608,59842.0,59836.0,1.84637594]
[1726252654446,0.3608,59842.0,59836.0,1.34631896]
[1726252654447,0.444339,59837.0,59836.0,1.34631896]
[1726252654639,0.083539,59837.0,59836.0,1.31970449]
[1726252654940,0.083535,59840.0,59836.0,1.31970449]
[1726252655336,0.083536,59839.0,59836.0,1.31970449]
[1726252655537,0.3608,59837.0,59836.0,1.31970449]
[1726252655844,0.26830404,59845.0,59836.0,1.31970449]
[1726252655845,0.08353,59844.0,59836.0,1.31970449]
[1726252656035,0.38010848,59845.0,59839.0,0.3608]
[1726252656234,0.01930848,59845.0,59839.0,0.6208]
[1726252656443,0.3608,59850.0,59839.0,1.57970449]
[1726252656947,0.36895776,59850.0,59839.0,1.57970449]
[1726252657747,0.37987594,59850.0,59839.0,1.57970449]
[1726252658740,0.083523,59849.0,59839.0,1.31970449]
[1726252659065,0.37987594,59850.0,59839.0,1.31970449]
[1726252659539,0.46339794,59850.0,59839.0,1.31970449]
[1726252660136,0.37987594,59850.0,59839.0,1.31970449]
[1726252660348,0.0599205,59849.0,59839.0,1.31970449]
[1726252660947,0.3608,59843.0,59839.0,1.31970449]
[1726252661146,0.0599205,59844.0,59839.0,1.31970449]
[1726252661446,0.083522,59849.0,59839.0,1.31970449]
[1726252661848,0.01907594,59850.0,59846.0,0.3608]
[1726252662150,0.05991522,59857.0,59849.0,0.26]
[1726252662336,0.083502,59864.0,59855.0,0.26]
[1726252662539,0.05991522,59866.0,59855.0,0.26]
[1726252662540,0.05991522,59866.0,59858.0,0.3608]
[1726252662841,0.00827882,59867.0,59858.0,1.68050449]
[1726252663145,0.05991522,59871.0,59858.0,1.68050449]
[1726252663339,0.01928633,59871.0,59863.0,0.3608]
[1726252663548,0.083491,59872.0,59863.0,1.31970449]
[1726252663741,0.05991522,59878.0,59863.0,1.31970449]
[1726252663943,0.083486,59876.0,59866.0,0.6208]
[1726252664245,0.05991522,59878.0,59866.0,1.57970449]
[1726252664449,0.083485,59876.0,59866.0,1.57970449]
[1726252664743,0.083482,59878.0,59866.0,1.57970449]
[1726252664945,0.083482,59878.0,59866.0,1.94050449]
[1726252665151,0.083483,59877.0,59866.0,1.68050449]
[1726252665455,0.37150987,59879.0,59866.0,1.68050449]
[1726252666446,0.083485,59876.0,59866.0,1.68050449]
[1726252666637,0.37150987,59879.0,59866.0,1.31970449]
[1726252667043,0.3608,59874.0,59866.0,1.31970449]
[1726252667243,0.37150987,59879.0,59869.0,0.3608]
[1726252667553,0.37150987,59879.0,59869.0,0.6208]
[1726252667743,0.37150987,59879.0,59869.0,1.94050449]
[1726252667938,0.37150987,59879.0,59869.0,1.31970449]
[1726252668343,0.083486,59876.0,59869.0,1.31970449]
[1726252669147,0.3608,59873.0,59869.0,1.31970449]
[1726252669341,0.3608,59870.0,59869.0,1.31970449]
[1726252669547,0.26,59878.0,59869.0,1.31970449]
[1726252669948,0.343483,59878.0,59869.0,1.31970449]
[1726252670150,0.26,59871.0,59869.0,1.31970449]
[1726252670349,0.083493,59870.0,59869.0,1.31970449]
[1726252670548,0.00821032,59871.0,59869.0,1.31970449]
[1726252670855,0.444288,59874.0,59869.0,1.31970449]
[1726252671050,0.3608,59874.0,59869.0,1.31970449]
[1726252671546,0.083493,59870.0,59869.0,1.31970449]
[1726252671750,0.00848353,59870.0,59869.0,1.31970449]
[1726252671947,0.3608,59873.0,59869.0,1.31970449]
[1726252672655,0.083492,59871.0,59869.0,1.31970449]
[1726252672846,0.083493,59870.0,59869.0,1.31970449]
[1726252673363,0.09185204,59870.0,59869.0,1.31970449]
[1726252673656,0.09185204,59870.0,59853.0,0.3608]
[1726252673657,0.083495,59869.0,59853.0,0.3608]
[1726252673853,0.083505,59861.0,59853.0,1.66824973]
[1726252674062,0.083507,59860.0,59853.0,1.66824973]
[1726252674352,0.3608,59865.0,59855.0,0.26]
[1726252674756,0.3608,59865.0,59855.0,1.56744973]
[1726252675446,0.43441063,59865.0,59855.0,1.56744973]
[1726252675647,0.05989969,59864.0,59855.0,1.56744973]
[1726252675955,0.05989969,59864.0,59855.0,1.30744973]
[1726252677343,0.05989969,59864.0,59860.0,0.3608]
[1726252677546,0.05989969,59864.0,59860.0,1.66824973]
[1726252678050,0.01371094,59865.0,59860.0,1.66824973]
[1726252678254,0.05989969,59866.0,59860.0,1.66824973]
[1726252678558,0.0084267,59866.0,59860.0,1.66824973]
[1726252678752,0.42069969,59867.0,59860.0,1.66824973]
[1726252678946,0.05989969,59866.0,59860.0,1.66824973]
[1726252679258,0.00821696,59866.0,59860.0,1.66824973]
[1726252679445,0.0835,59866.0,59860.0,1.66824973]
[1726252679646,0.15170188,59866.0,59860.0,1.66824973]
[1726252679955,0.0835,59865.0,59860.0,1.66824973]
[1726252681058,0.06820188,59866.0,59860.0,1.30744973]
[1726252681059,0.083502,59864.0,59860.0,1.30744973]
[1726252681942,0.3608,59861.0,59860.0,1.30744973]
[1726252682153,0.05989969,59861.0,59860.0,1.30744973]
[1726252682355,0.08182268,59866.0,59860.0,1.30744973]
[1726252682555,0.083455,59897.0,59860.0,1.30744973]